[Event "31st MPL National U18 Chess-ch 2022"]
[Site "Pollachi"]
[Date "2022.04.19"]
[Round "4.1"]
[White "Md Bashiq Imrose"]
[Black "Bharath Subramaniyam H"]
[Result "0-1"]
[ECO "A46"]
[WhiteElo "1671"]
[BlackElo "2508"]
[Annotator "TA"]
[PlyCount "92"]
[EventDate "2022.04.18"]
[EventCountry "IND"]
[SourceTitle "playchess.com"]
[Source "ChessBase"]
[SourceQuality "1"]
[TimeControl "5400+30"]

{[%evp 9,92,0,0,-14,-16,-9,-8,-11,0,0,0,-4,0,-16,-17,-32,-16,-8,-16,-25,0,0,0,0,0,-35,-19,-28,-22,-90,-63,-78,-90,-76,-81,-73,-35,-41,0,0,0,-8,0,0,0,-10,0,0,0,-273,-269,-268,-244,-285,-284,-286,-290,-257,-270,-670,-681,-679,-403,-668,-655,-514,-448,-441,-431,-727,-739,-961,-794,-924,-900,-1048,-1086,-1013,-1013,-1006,-806,-999,-987,-577,-546]} 1. d4 {[%emt 0:00:05]} Nf6 {[%emt 0:00:11]} 2. Nf3 {[%emt 0:00:06]} d6 {[%emt 0:03:03]} 3. Bg5 {[%emt 0:01:34]} Nbd7 {[%emt 0:05:19]} 4. Nbd2 {[%emt 0:00:35]} e5 {[%emt 0:04:22]} 5. dxe5 {[%emt 0:01:54]} dxe5 {[%emt 0:00:46]} 6. e4 {[%emt 0:01:11] A46: 1 d4 Nf6 2 Nf3 e6: Torre, London and Colle Systems.} Be7 {[%emt 0:02:00]} 7. Bc4 {[%emt 0:03:49]} O-O {[%emt 0:01:40]} 8. O-O {[%emt 0:01:06] The position is equal.} Ng4 {[%emt 0:06:19]} 9. Bxe7 {[%emt 0:01:26]} Qxe7 {[%emt 0:00:27] [#]} 10. h3 $146 {[%emt 0:02:36]} ({Predecessor:} 10. c3 Ngf6 11. Re1 b6 12. a4 a5 13. Qb1 Bb7 {½-½ (13) Straka,J (2280)-Hausner,I (2360) Slovakia 2017}) 10... Ngf6 {[%emt 0:02:02]} 11. c3 {[%emt 0:07:15]} Nh5 {[%emt 0:10:06]} 12. Nd4 {[%emt 0:03:05] Strongly threatening Nf5.} exd4 {[%emt 0:10:06]} 13. Qxh5 {[%emt 0:00:42]} dxc3 {[%emt 0:00:18]} 14. bxc3 {[%emt 0:00:08]} Nf6 {[%emt 0:11:51][%cal Bd7f6,Bf6d5,Bd5f4][%mdl 32]} 15. Qg5 {[%emt 0:05:37]} h6 {[%emt 0:01:09]} 16. Qe3 {[%emt 0:04:18]} Be6 {[%emt 0:01:46]} 17. Bxe6 {[%emt 0:04:07]} Qxe6 {[%emt 0:00:07]} 18. Rfe1 {[%emt 0:00:49]} Rfe8 {[%emt 0:02:50]} 19. f3 {[%emt 0:03:03] [#]} (19. e5 $11 {remains equal.} Nd5 20. Qd4) 19... Nd5 $1 $17 {[%emt 0:11:58]} 20. Qc5 {[%emt 0:01:49]} Nf4 {[%emt 0:00:33]} 21. Qxc7 {[%emt 0:02:02]} Qf6 {[%emt 0:02:32] &Nero is more active.} 22. Nf1 {[%emt 0:13:53][%cal Bd2f1,Bf1e3,Be3g4][%mdl 32]} Rac8 {[%emt 0:05:24][%mdl 64] Deflection} 23. Qd7 {[%emt 0:00:44]} Qxc3 {[%emt 0:02:19]} 24. Rad1 $1 {[%emt 0:02:29]} Re6 $40 {[%emt 0:08:08][%mdl 128] Black has some attack.} 25. Qd2 {[%emt 0:01:42]} Qe5 {[%emt 0:01:01] aiming for ...Rg6.} 26. Ne3 {[%emt 0:03:55]} Rg6 {[%emt 0:00:46] ...Nxh3+ is the strong threat.} 27. Ng4 {[%emt 0:01:07]} Qg5 {[%emt 0:03:43]} 28. h4 {[%emt 0:00:33]} Qc5+ {[%emt 0:00:01]} 29. Qe3 $2 {[%emt 0:01:08][%mdl 8192] [#] Black continues to play with concentration.} (29. Kh1 $11 {and White is okay.} Qc7 30. e5) 29... Qxe3+ $1 $19 {[%emt 0:04:13]} 30. Nxe3 {[#]} Nxg2 $1 {[%mdl 512]} 31. Nxg2 {Threatens to win with Re2.} (31. h5 Nxe1+) 31... Rc2 {[%csl LRa2,LRg2] Prevents Re2.} 32. Rd8+ Kh7 33. Kh1 Rgxg2 {[%mdl 4096] Endgame KRR-KRR} 34. Rc1 $2 (34. a4) 34... Rh2+ ({Worse is} 34... Rxc1+ 35. Kxg2 Rc2+ 36. Kg3 $19) 35. Kg1 Rcg2+ ({Inferior is} 35... Rxc1+ 36. Kxh2 Rc2+ 37. Kg3 $19) 36. Kf1 Rxa2 {[%cal Rh2h1] Black is clearly winning.} 37. Kg1 {Against Rh1+} Rxh4 38. Rd7 Rf4 39. Rxb7 (39. Rf1 $142) 39... Rxf3 {[%emt 0:01:00]} 40. Rcc7 Re3 {[%emt 0:00:30][%cal Re3e1]} 41. Kf1 {Against Re1+} Rd3 {[%emt 0:00:30][%cal Rd3d1]} 42. Rd7 Rxd7 {[%emt 0:00:30]} 43. Rxd7 f6 {[%emt 0:00:30]} 44. Re7 Ra5 {[%emt 0:00:30] Hoping for ...Re5.} 45. Kf2 Re5 {[%emt 0:00:30]} 46. Rxa7 Rxe4 {[%emt 0:00:30] Weighted Error Value: White=0.56/Black=0.13 (very precise)} 0-1

[Event "31st MPL National U18 Chess-ch 2022"]
[Site "Pollachi"]
[Date "2022.04.19"]
[Round "4.2"]
[White "John Veny Akkarakaran"]
[Black "Harshad S"]
[Result "1/2-1/2"]
[ECO "B92"]
[WhiteElo "1687"]
[BlackElo "2328"]
[Annotator "TA"]
[PlyCount "163"]
[EventDate "2022.04.18"]
[EventCountry "IND"]
[SourceTitle "playchess.com"]
[Source "ChessBase"]
[SourceQuality "1"]
[TimeControl "5400+30"]

{[%evp 18,163,8,-10,-14,-20,-19,-30,-33,-19,-15,-51,-41,-50,-53,-46,-45,-97,-87,-95,-100,-108,-112,-93,-93,-127,-120,-113,-101,-102,-118,-124,-124,-126,-113,-140,-140,-140,-133,-165,-155,-143,-120,-142,-140,-194,-114,-172,-144,-143,-107,-172,0,-152,-161,-266,-272,-312,-348,-387,-384,-374,-369,-396,-372,-391,-331,-417,-362,-359,-315,-387,-385,-380,-386,-390,-373,-417,-403,-484,-423,-409,-381,-412,-389,-361,-287,-387,-380,-493,-493,-485,-481,-483,-482,-476,-476,-455,-304,-517,-465,-462,-462,-452,-447,-425,-243,-243,-20,-287,-155,-142,-138,-130,0,0,0,0,0,0,0,0,0,0,0,0,0,0,0,0,0,0,0,0,0,0,0,0,0,0,0,0,0,0,0,0,0,0]} 1. e4 {[%emt 0:00:02]} c5 {[%emt 0:00:24]} 2. Nf3 {[%emt 0:00:07]} d6 {[%emt 0:00:11]} 3. d4 {[%emt 0:00:05]} cxd4 {[%emt 0:00:12]} 4. Nxd4 {[%emt 0:00:06]} Nf6 {[%emt 0:00:13]} 5. Nc3 {[%emt 0:00:09]} a6 {[%emt 0:00:22]} 6. Be2 {[%emt 0:00:08]} e5 {[%emt 0:00:18]} 7. Nb3 {[%emt 0:00:08]} Be7 {[%emt 0:00:20]} 8. O-O {[%emt 0:00:09]} O-O {[%emt 0:00:08]} 9. Kh1 {[%emt 0:00:04]} Nc6 {[%emt 0:01:58] 9...Be6 is the recent fashion.} 10. f4 {[%emt 0:00:06]} Re8 {[%emt 0:01:33] B92: Sicilian Najdorf: 6 Be2.} 11. f5 {[%emt 0:07:32]} b5 {[%emt 0:11:56]} 12. Bg5 {[%emt 0:04:26]} Bb7 {[%emt 0:06:13] [#] Black has an edge.} 13. Bf3 $146 {[%emt 1:23:58]} ({Predecessor:} 13. Bxf6 Bxf6 14. Nd5 Nd4 15. c4 Rc8 16. Nxd4 exd4 17. cxb5 axb5 18. Bd3 Bxd5 19. exd5 {½-½ (45) Nakamura,H (2736)-Giri,A (2764) chess24.com INT 2020}) 13... Rc8 {[%emt 0:28:58]} 14. Bxf6 {[%emt 0:00:00]} Bxf6 {[%emt 0:00:12]} 15. Nd5 {[%emt 0:00:00]} Nd4 {[%emt 0:02:36]} 16. Nxf6+ {[%emt 0:00:00]} Qxf6 {[%emt 0:00:29]} 17. Nxd4 {[%emt 0:00:00]} (17. c3 $15 Nxf3 18. Qxf3) 17... exd4 $17 {[%emt 0:00:03]} 18. Qd3 {[%emt 0:00:00][%cal Oe4e5]} Qe5 {[%emt 0:06:26][%cal Rb7e4]} 19. Rad1 {[%emt 0:00:00]} Bxe4 {[%emt 0:05:25]} 20. Bxe4 {[%emt 0:00:00]} Qxe4 {[%emt 0:00:32]} 21. Qxd4 {[%emt 0:00:00]} Qxd4 {[%emt 0:03:13]} ({Inferior is} 21... Qxc2 22. Qxd6 Qxb2 23. Qxa6 $15) 22. Rxd4 {[%emt 0:00:00]} Rxc2 {[%emt 0:00:02][%cal Oc2f2]} 23. Rxd6 {[%emt 0:00:00][%mdl 4096] Endgame KRR-KRR} a5 {[%emt 0:06:02]} 24. b4 {[%emt 0:00:00]} axb4 {[%emt 0:10:35]} 25. Rb6 {[%emt 0:00:00] [#]} Rf2 $3 {[%emt 0:09:27][%cal Rf2f1][%mdl 512]} 26. Rb1 {[%emt 0:00:00]} (26. Kg1 Rxa2) 26... b3 {[%emt 0:02:36]} 27. axb3 {[%emt 0:00:00]} Rxf5 {[%emt 0:00:24]} 28. Kg1 {[%emt 0:00:00]} f6 {[%emt 0:01:14]} 29. Rc1 {[%emt 0:00:00]} Re7 {[%emt 0:00:36]} 30. h3 {[%emt 0:00:00]} h5 {[%emt 0:00:43]} 31. b4 {[%emt 0:01:51]} (31. Rbc6 $17) 31... h4 {[%emt 0:00:40]} ({Black should try} 31... Re2 $19 {White must now prevent ...Rff2.} 32. Rb8+ Kh7) 32. Rb8+ {[%emt 0:02:18]} (32. Rf1 $17 Rg5 33. Rf4) 32... Kf7 $19 {[%emt 0:00:12]} 33. Rf1 {[%emt 0:01:23]} Rd5 {[%emt 0:00:53]} 34. Rc1 {[%emt 0:01:19]} (34. Rf4 $17) 34... Rf5 {[%emt 0:01:34]} 35. Rf1 $1 {[%emt 0:00:42]} Rg5 {[%emt 0:00:20]} 36. Rc8 {[%emt 0:01:49]} (36. Rf4 $142) 36... Re4 {[%emt 0:00:36]} 37. Rc7+ {[%emt 0:01:07]} Kg6 {[%emt 0:00:09]} 38. Rc5 {[%emt 0:00:46]} Rxb4 {[%emt 0:00:40]} 39. Rc2 {[%emt 0:00:02]} Re4 {[%emt 0:00:16]} 40. Rf3 {[%emt 0:00:07]} b4 {[%emt 0:00:17]} 41. Rb3 {[%emt 0:00:08]} Rf5 {[%emt 0:00:51] And now ...Re1+ would win.} 42. Rcb2 {[%emt 0:00:11]} Rff4 {[%emt 0:00:44]} 43. Kh2 {[%emt 0:00:17]} Rc4 {[%emt 0:00:10]} 44. Rb1 {[%emt 0:00:26]} Kf5 {[%emt 0:00:09]} 45. R1b2 {[%emt 0:00:07]} g6 {[%emt 0:00:12][%cal Bg7g6,Bg6g5][%mdl 32]} 46. Rb1 {[%emt 0:00:18]} Ke5 {[%emt 0:00:08]} 47. Ra1 {[%emt 0:00:15]} Rc5 {[%emt 0:01:28] Against Ra5} 48. Rd1 {[%emt 0:00:42]} g5 {[%emt 0:00:08]} 49. Rdb1 {[%emt 0:04:12]} Rcc4 {[%emt 0:00:15]} 50. Ra1 {[%emt 0:00:30]} Kf5 {[%emt 0:00:53]} 51. Rb2 {[%emt 0:00:00]} Kg6 {[%emt 0:00:16]} 52. Rab1 {[%emt 0:00:00]} Rfd4 {[%emt 0:00:19]} 53. Kg1 {[%emt 0:00:00]} f5 {[%emt 0:00:17]} 54. Rb3 {[%emt 0:00:00]} Rf4 {[%emt 0:00:33]} 55. R3b2 {[%emt 0:00:00]} g4 {[%emt 0:00:10]} 56. hxg4 {[%emt 0:00:00]} fxg4 {[%emt 0:00:11]} 57. Kh2 {[%emt 0:00:00]} Kg5 {[%emt 0:00:10]} 58. Rb3 $2 {[%emt 0:04:00]} (58. g3 {is the only way for White.} hxg3+ 59. Kxg3) 58... Kf5 {[%emt 0:00:17]} 59. R3b2 {[%emt 0:00:00]} Ke5 60. Rd2 {[%emt 0:00:00]} Rfd4 {[%emt 0:00:48] Inhibits Rd8.} 61. Re2+ Kd5 {[%emt 0:00:26]} (61... Kd6 $142 62. Re8 Rf4) 62. Re8 {[%emt 0:00:00]} Rc6 $2 {[%emt 0:00:33]} (62... Re4 $19 63. Rb8 Kc5) 63. Rh8 $2 {[%emt 0:00:00][%mdl 8192]} (63. Rd8+ $11 {and White has nothing to worry.} Rd6 64. Rb8) 63... Kc5 {[%emt 0:03:09]} (63... Ke4 $19 {aiming for ...Ke3.} 64. Rxh4 Ke3) 64. Rh5+ $17 {[%emt 0:00:00] [#]} Kb6 $1 {[%emt 0:00:30] Threatens to win with ...Rg6.} 65. Rxh4 {[%emt 0:00:00]} g3+ {[%emt 0:00:52]} (65... Ka5 $17 {[%cal Og4g3] Strongly threatening ...g3+!} 66. Rh8 Ka6) 66. Kh3 $11 {[%emt 0:00:00] The position is equal.} Rxh4+ {[%emt 0:00:10]} 67. Kxh4 {[%emt 0:00:00] KR-KR} Kb5 {[%emt 0:00:27]} 68. Kxg3 {[%emt 0:00:00]} Ka4 {[%emt 0:00:54]} 69. Kf4 {[%emt 0:00:00]} b3 {[%emt 0:00:13]} 70. g4 {[%emt 0:00:44][%cal Bg2g4,Bg4g5,Bg5g6,Bg6g7][%mdl 32]} Ka3 {[%emt 0:00:26]} 71. g5 Ka2 72. Rxb3 {[%emt 0:02:18]} Kxb3 {KR-KP} 73. Kf5 {[%emt 0:00:01]} Kc4 74. g6 {[%emt 0:00:04]} Kd5 {[%emt 0:01:36]} 75. g7 {[%emt 0:00:08]} Rc8 {[%emt 0:00:24]} 76. Kf6 {[%emt 0:00:07]} Kd6 {[%emt 0:00:11]} 77. Kf7 {[%emt 0:00:06]} Rc7+ {[%emt 0:00:03]} 78. Kf6 {[%emt 0:00:36]} Rc8 {[%emt 0:00:10]} 79. Kf7 {[%emt 0:00:04]} Rc7+ {[%emt 0:00:19]} 80. Kf6 {[%emt 0:00:04]} Rc8 {[%emt 0:00:46]} 81. Kf7 {[%emt 0:00:01]} Rc7+ {[%emt 0:00:05]} 82. Kf6 {[%emt 0:00:02] Whites escaped into a draw.  Weighted Error Value: White=0.27 (precise) /Black=0.18 (very precise)} 1/2-1/2

[Event "31st MPL National U18 Chess-ch 2022"]
[Site "Pollachi"]
[Date "2022.04.19"]
[Round "4.3"]
[White "Apoorv Kamble"]
[Black "Soham Kamotra"]
[Result "0-1"]
[ECO "B18"]
[WhiteElo "1679"]
[BlackElo "2229"]
[Annotator "TA"]
[PlyCount "108"]
[EventDate "2022.04.18"]
[EventCountry "IND"]
[SourceTitle "playchess.com"]
[Source "ChessBase"]
[SourceQuality "1"]
[TimeControl "5400+30"]

{[%evp 14,108,8,-9,3,-58,-55,-35,-20,-55,-34,-56,-53,-51,-61,-105,-100,-96,-98,-105,-54,-41,-54,-41,-35,-114,-41,-96,-96,-110,-104,-114,-122,-139,-142,-131,-131,-135,-133,-139,-139,-145,-136,-178,-157,-165,-127,-185,-186,-267,-230,-334,-339,-554,-553,-551,-533,-615,-581,-687,-646,-520,-409,-1161,-943,-1201,-1172,-1551,-1533,-1303,-1312,-1731,-1710,-3048,-3025,-2258,-2133,-3181,-1818,-6744,-6149,-5065,-3797,-29957,-29959,-29956,-29953,-29957,-29957,-29968,-29969,-29973,-29973,-29972,-29972,-6087,-2024]} 1. e4 {[%emt 0:00:02]} c6 {[%emt 0:00:29]} 2. d4 {[%emt 0:00:07]} d5 {[%emt 0:00:14]} 3. Nd2 {[%emt 0:00:07]} dxe4 {[%emt 0:00:57]} 4. Nxe4 {[%emt 0:00:09]} Bf5 {[%emt 0:00:04]} 5. Ng3 {[%emt 0:00:17]} Bg6 {[%emt 0:00:02]} 6. Bc4 {[%emt 0:00:11]} e6 {[%emt 0:00:07]} 7. N1e2 {[%emt 0:00:05]} Bd6 {[%emt 0:00:06]} 8. O-O {[%emt 0:00:08]} Nd7 {[%emt 0:01:11] B18: Classical Caro-Kann: 4...Bf5 sidelines.} 9. f4 {[%emt 0:00:26]} (9. Nf4 $11) 9... Ne7 $15 {[%emt 1:31:50]} 10. Bd3 {[%emt 0:12:24]} Qc7 {[%emt 0:00:00] Black is slightly better.} 11. Kh1 {[%emt 0:04:01]} O-O {[%emt 0:00:00]} 12. Bxg6 {[%emt 0:04:22]} hxg6 {[%emt 0:00:00]} 13. Ne4 {[%emt 0:00:07]} Nf6 {[%emt 0:00:00] [#]} 14. Ng5 $146 {[%emt 0:13:08]} ({Predecessor:} 14. Nxf6+ gxf6 15. c4 Rfd8 16. Bd2 Nc8 17. Qe1 Bf8 18. Rc1 Qe7 19. c5 f5 20. Bc3 {½-½ (83) Hamdouchi,H (2564)-Santos,J (2355) Santo Antonio 1999}) 14... c5 {[%emt 0:00:00]} 15. Be3 {[%emt 0:04:57]} Nf5 {[%emt 0:00:00]} 16. Bg1 {[%emt 0:09:00]} cxd4 {[%emt 0:00:00] &Nero is more active.} (16... Rfd8 $17 17. Qc1 b5) 17. Nxd4 {[%emt 0:01:14]} Nxd4 {[%emt 0:00:00]} 18. Qxd4 {[%emt 0:00:59]} Rfd8 {[%emt 0:00:00]} 19. Ne4 {[%emt 0:11:53] [#]} (19. Qf2 $15) 19... Be7 {[%emt 0:00:00]} (19... e5 $1 $17 {[%cal Re5d4]} 20. Qa4 Nxe4 21. Qxe4 exf4) 20. Qa4 {[%emt 0:00:22]} ({Better is} 20. Qc3 $1 $15 Qxc3 21. Nxc3) 20... b5 $17 {[%emt 0:00:00] Black continues to play with concentration.} 21. Nxf6+ {[%emt 0:00:23]} Bxf6 {[%emt 0:00:00]} 22. Qb3 {[%emt 0:02:47]} Rd2 {[%emt 0:00:00]} 23. Be3 {[%emt 0:09:39]} Rxc2 {[%emt 0:00:00]} 24. Rac1 {[%emt 0:00:01]} Rxc1 $40 {[%emt 0:00:00][%mdl 128] Black wants a kill.} 25. Rxc1 {[%emt 0:00:02]} Qb7 {[%emt 0:00:00]} 26. Qc2 {[%emt 0:12:22] Against Qe4} Rd8 {[%emt 0:00:00][%cal Ba8d8,Bd8d3,Bd3d2][%mdl 32]} 27. h3 {[%emt 0:00:50]} a6 {[%emt 0:00:00]} 28. Qc6 {[%emt 0:03:39]} Qxc6 {[%emt 0:00:00]} 29. Rxc6 $19 {[%emt 0:00:02][%mdl 4096] Endgame KRB-KRB} Rd3 {[%emt 0:00:00]} (29... Bxb2 30. Rxa6 Rd3 31. Bf2 $17) 30. Ba7 {[%emt 0:00:31]} (30. Bc1 $17 {was necessary.}) 30... Bh4 {[%emt 0:00:00]} ({Not} 30... Bxb2 31. Rxa6 e5 32. Rb6) 31. Rc1 {[%emt 0:06:56]} (31. Kg1 $142) 31... Bg3 {[%emt 0:00:00]} 32. Bb8 {[%emt 0:00:01]} (32. Rf1 $142) 32... Rd2 33. f5 $2 {[%emt 0:00:30]} (33. Be5) 33... Bxb8 {KRB-KR} 34. Rc8+ {[%emt 0:00:30]} Kh7 {[%cal Rd2d1] [#]} 35. Rxb8 {[%emt 0:00:30]} gxf5 {[%cal Bg6f5,Bf5f4][%mdl 32] KR-KR} 36. Rb6 {[%emt 0:00:30]} Rxb2 37. Rxa6 {[%emt 0:00:30]} Kg6 38. a4 {[%emt 0:00:30]} (38. a3 $142) 38... bxa4 39. Rxa4 {[%emt 0:00:30]} e5 {[%cal Be6e5,Be5e4][%mdl 32] aiming for ...f4.} 40. Kg1 {[%emt 0:00:30]} f4 {White must now prevent ...f5.} 41. Kf1 {[%emt 0:00:30]} f6 {[%cal Bf7f6,Bf6f5][%mdl 32]} 42. Ra7 {[%emt 0:00:30]} e4 {...e3 is the strong threat.} 43. Ra4 {[%emt 0:00:30]} f5 44. Ra7 {[%emt 0:00:30]} Kf6 {Threatens to win with ...e3.} 45. h4 {[%emt 0:00:30]} Rb1+ 46. Kf2 {[%emt 0:00:30]} Rh1 47. Ra6+ {[%emt 0:00:30]} Kf7 48. Ra7+ {[%emt 0:00:30]} Kg6 49. Ra6+ {[%emt 0:00:30]} Kh7 50. Ra5 {[%emt 0:00:30]} g6 51. Ra7+ {[%emt 0:00:30]} Kh6 52. Rb7 {[%emt 0:00:30]} Rxh4 53. Kg1 {[%emt 0:00:30]} Kg5 54. Rb6 {[%emt 0:00:30]} Rh7 {Weighted Error Value: White=0.77/Black=0.12 (very precise)} 0-1

[Event "31st MPL National U18 Chess-ch 2022"]
[Site "Pollachi"]
[Date "2022.04.19"]
[Round "4.4"]
[White "Sathvik Adiga"]
[Black "Mahendra Teja Mekala"]
[Result "0-1"]
[ECO "B34"]
[WhiteElo "1562"]
[BlackElo "1875"]
[Annotator "NA RC"]
[PlyCount "132"]
[EventDate "2022.04.18"]
[EventCountry "IND"]
[SourceTitle "playchess.com"]
[Source "ChessBase"]
[SourceQuality "1"]
[TimeControl "5400+30"]

{[%evp 29,131,-80,-55,-72,-37,-54,-46,-49,-25,-35,0,0,0,0,13,4,32767,32767,34,11,32767,32767,32767,-35,-25,-66,7,0,32767,32767,16,0,10,-14,0,-3,0,0,0,0,32767,32767,32767,32767,32767,32767,-18,-55,2,56,8,-824,-1210,-106,-534,-12843,-5073,-5081,-5833,-29982,-29983,32767,32767,32767,32767,32767,32767,-29986,32767,32767,32767,-29988,32767,32767,32767,32767,-29991,-27999,-29991,-29992,-1210,-29993,32767,32767,32767,-29995,-29994,-29995,32767,32767,32767,32767,32767,32767,-29996,-29996,-29996,32767,32767,32767,32767,-29998,-29999,-29999]} 1. e4 {[%emt 0:00:02]} c5 {[%emt 0:00:14]} 2. Nf3 {[%emt 0:00:04]} g6 {[%emt 0:00:13]} 3. d4 {[%emt 0:00:06]} cxd4 {[%emt 0:00:12]} 4. Nxd4 {[%emt 0:00:05]} Bg7 {[%emt 0:00:10]} 5. Nc3 {[%emt 0:00:24]} Nc6 {[%emt 0:00:16]} 6. Be3 {[%emt 0:00:05]} Nf6 {[%emt 0:00:28]} 7. f3 {[%emt 0:00:37]} O-O {[%emt 0:00:29]} 8. Qd2 {[%emt 0:00:02]} d5 {[%emt 0:00:18]} 9. exd5 {[%emt 0:08:46]} Nxd5 {[%emt 0:00:29]} 10. Nxc6 {[%emt 0:00:14]} bxc6 {[%emt 0:00:29]} 11. Bd4 {[%emt 0:02:10]} Bxd4 {[%emt 0:04:37]} 12. Qxd4 {[%emt 0:00:08]} e5 {[%emt 0:00:10]} 13. Qc5 {[%emt 0:04:37]} Nxc3 {[%emt 0:00:25]} 14. Qxc3 {[%emt 0:00:11]} e4 {[%emt 0:03:17]} 15. Qd2 {[%emt 0:27:12]} Qf6 {[%emt 0:19:00]} 16. O-O-O $1 {[%emt 0:07:25]} Rb8 {[%emt 0:05:44]} ({Black should play} 16... exf3 $17 17. Qd4 Qg5+ 18. Qd2 Qc5 19. gxf3 Bf5) 17. Qd4 {[%emt 0:01:41]} Qg5+ $1 {[%emt 0:00:44]} 18. Kb1 {[%emt 0:00:27]} exf3 {[%emt 0:01:32]} 19. gxf3 {[%emt 0:00:20]} c5 {[%emt 0:00:20]} (19... Be6 $15 {feels stronger.} 20. Bd3 Rfd8) 20. Qc3 {[%emt 0:02:14]} Be6 {[%emt 0:31:33]} 21. b3 {[%emt 0:08:23]} Qf4 {[%emt 0:09:37]} (21... c4 {feels stronger.} 22. Bxc4 Rfc8) 22. Qxc5 {[%emt 0:01:07]} Qxf3 {[%emt 0:02:55]} 23. Bd3 {[%emt 0:00:24]} Qf6 {[%emt 0:08:50]} 24. h4 {[%emt 0:04:12]} (24. Rhf1 $5 {[%cal Rf1f6]} Qh4 25. Rde1 $11 (25. Qxa7 Qxh2 26. Qd4 Qc7 $11)) 24... Rfc8 {[%emt 0:01:01]} 25. Qg5 {[%emt 0:00:01]} Qxg5 {[%emt 0:00:30]} 26. hxg5 {[%emt 0:00:21]} Rc5 {[%emt 0:00:09]} 27. Rdg1 {[%emt 0:04:06] [#]} a5 {[%emt 0:03:50]} (27... Rb4 $1 $17) 28. Rh4 {[%emt 0:00:52]} Rb4 {[%emt 0:00:25]} 29. Rxb4 {[%emt 0:01:52]} axb4 {[%emt 0:00:07]} 30. Kb2 {[%emt 0:01:04]} Ra5 {[%emt 0:00:10]} 31. Be4 {[%emt 0:00:35]} Kg7 {[%emt 0:00:11]} 32. Rg2 {[%emt 0:00:10]} h5 {[%emt 0:00:11]} 33. gxh6+ $1 {[%emt 0:02:52]} Kxh6 {[%emt 0:00:12]} 34. c3 {[%emt 0:00:06]} bxc3+ {[%emt 0:01:04]} 35. Kxc3 {[%emt 0:01:15]} f5 {[%emt 0:00:10]} 36. Bb1 {[%emt 0:00:45]} g5 {[%emt 0:00:33]} 37. b4 {[%emt 0:00:10]} Re5 $1 {[%emt 0:02:08]} 38. a4 {[%emt 0:00:18]} Re3+ {[%emt 0:00:12]} (38... g4 $1 $15) 39. Bd3 $1 {[%emt 0:00:17]} f4 {[%emt 0:02:59]} 40. Re2 $2 {[%emt 0:01:38]} (40. Kd4 $11) 40... Rxe2 {[%emt 0:00:40]} 41. Bxe2 {[%emt 0:00:07]} g4 {[%emt 0:00:16]} 42. Kd4 {[%emt 0:00:54]} Kg5 {[%emt 0:00:35]} 43. Bf1 {[%emt 0:13:09]} g3 {[%emt 0:01:51]} 44. a5 {[%emt 0:07:21]} f3 {[%emt 0:02:36]} 45. Ke3 {[%emt 0:00:53]} g2 {[%emt 0:00:18]} 46. Bxg2 {[%emt 0:00:24]} fxg2 {[%emt 0:00:06]} 47. Kf2 {[%emt 0:00:02]} Bd5 {[%emt 0:00:08]} 48. b5 {[%emt 0:00:07]} Kg4 {[%emt 0:00:09]} 49. a6 {[%emt 0:00:04]} Kh3 {[%emt 0:00:13]} 50. Kg1 {[%emt 0:00:09]} Bc4 {[%emt 0:00:21]} 51. a7 {[%emt 0:05:32]} Bd5 {[%emt 0:00:06]} 52. b6 {[%emt 0:00:00]} Bb7 {[%emt 0:00:10]} ({Stronger than} 52... Kg3 53. b7 Bxb7 54. a8=Q Bxa8 $11) 53. Kf2 {[%emt 0:00:00]} Kh2 {[%emt 0:00:06]} 54. a8=Q {[%emt 0:00:00]} g1=Q+ {[%emt 0:04:01]} (54... Bxa8 $142 55. Ke3 g1=Q+ 56. Kd3 Qc5 57. b7 Bxb7 58. Kd2 Be4 59. Ke2 Qc1 60. Kf2 Qd2+ 61. Kf1 Bg2#) 55. Ke2 {[%emt 0:00:00]} Bxa8 {[%emt 0:00:00]} 56. b7 {[%emt 0:00:00]} Bxb7 {[%emt 0:00:00]} 57. Kd3 {[%emt 0:00:00]} Qg4 {[%emt 0:00:00]} 58. Ke3 {[%emt 0:00:00]} Qe4+ {[%emt 0:00:00]} 59. Kd2 {[%emt 0:00:00]} Ba6 {[%emt 0:00:00]} 60. Kc3 {[%emt 0:00:00]} Qc4+ {[%emt 0:00:00]} 61. Kb2 {[%emt 0:00:00]} Qd3 {[%emt 0:00:00]} 62. Ka2 {[%emt 0:00:00]} Bc4+ {[%emt 0:00:00]} 63. Kb2 {[%emt 0:00:00]} Qb3+ {[%emt 0:00:00]} 64. Kc1 {[%emt 0:00:00]} Qa2 {[%emt 0:00:00]} 65. Kd1 {[%emt 0:00:00]} Bd3 {[%emt 0:00:00]} 66. Ke1 {[%emt 0:00:00]} Qe2# {[%emt 0:00:00]} 0-1

[Event "31st MPL National U18 Chess-ch 2022"]
[Site "Pollachi"]
[Date "2022.04.19"]
[Round "4.5"]
[White "Krishnan Ritvik"]
[Black "Gokulakrishna S"]
[Result "1-0"]
[ECO "B67"]
[WhiteElo "1761"]
[BlackElo "1400"]
[Annotator "NA RC"]
[PlyCount "64"]
[EventDate "2022.04.18"]
[EventCountry "IND"]
[SourceTitle "playchess.com"]
[Source "ChessBase"]
[SourceQuality "1"]
[TimeControl "5400+30"]

1. e4 {[%emt 0:00:02]} c5 {[%emt 0:00:46]} 2. Nf3 {[%emt 0:00:06]} d6 {[%emt 0:00:04]} 3. d4 {[%emt 0:00:07]} cxd4 {[%emt 0:00:05]} 4. Nxd4 {[%emt 0:00:07]} Nf6 {[%emt 0:00:04]} 5. Nc3 {[%emt 0:00:10]} Nc6 {[%emt 0:00:03]} 6. Bg5 {[%emt 0:00:09]} e6 {[%emt 0:00:05]} 7. Qd2 {[%emt 0:00:12]} a6 {[%emt 0:00:06]} 8. O-O-O {[%emt 0:00:08]} Bd7 {[%emt 0:00:04]} 9. f3 {[%emt 0:00:20]} Nxd4 {[%emt 0:00:08]} 10. Qxd4 {[%emt 0:00:08]} Be7 {[%emt 0:00:04]} 11. Kb1 {[%emt 0:01:40]} Qc7 {[%emt 0:01:36]} 12. h4 {[%emt 0:02:00]} Rc8 {[%emt 0:05:59]} 13. g4 {[%emt 0:04:01]} h5 {[%emt 0:03:19]} 14. gxh5 {[%emt 0:01:45]} Nxh5 {[%emt 0:06:42]} 15. Bh3 {[%emt 0:10:33]} b5 {[%emt 0:03:32]} 16. Rhe1 {[%emt 0:03:27]} Nf6 {[%emt 0:30:48]} 17. Qd2 {[%emt 0:04:46]} b4 {[%emt 0:01:49]} 18. Ne2 {[%emt 0:00:59]} a5 {[%emt 0:00:05]} 19. Nd4 {[%emt 0:01:05]} a4 {[%emt 0:13:16]} 20. f4 {[%emt 0:10:50]} a3 {[%emt 0:00:22]} 21. e5 {[%emt 0:03:06]} axb2 {[%emt 0:06:08]} 22. exf6 {[%emt 0:06:46]} gxf6 {[%emt 0:00:03]} 23. f5 {[%emt 0:16:01]} e5 {[%emt 0:00:29]} 24. Bh6 {[%emt 0:03:26]} Qc3 {[%emt 0:12:20]} 25. Bg4 {[%emt 0:11:17]} Qxd2 {[%emt 0:07:12]} 26. Bg5 Qe3 27. Bxe3 {[%emt 0:00:35]} Rxh4 {[%emt 0:00:44]} 28. Bd2 {[%emt 0:01:33]} exd4 {[%emt 0:00:18]} 29. Rg1 {[%emt 0:04:18]} Rc5 30. Bxb4 Rc4 {[%emt 0:00:59]} 31. Be1 {[%emt 0:12:32]} d3 {[%emt 0:00:15]} 32. cxd3 {[%emt 0:01:14]} Rhxg4 {[%emt 0:00:06]} 1-0